bitfinex/quotes_BTCUSD_20240703
["timestamp","ask_amount","ask_price","bid_price","bid_amount"]
[1719977218751,0.0596417,61064.0,61051.0,0.2421968]
[1719977218988,0.0596417,61064.0,61058.0,0.0672]
[1719977219198,0.0596417,61064.0,61058.0,0.08337554]
[1719977220599,0.0596417,61064.0,61058.0,0.01617554]
[1719977220812,0.1415227,61064.0,61058.0,0.02617554]
[1719977221001,0.081887,61060.0,61058.0,0.02617554]
[1719977221201,0.2648,61059.0,61058.0,0.02617554]
[1719977221485,0.346688,61059.0,61058.0,0.02617554]
[1719977222105,0.346688,61059.0,61058.0,0.01617554]
[1719977222314,0.346688,61059.0,61058.0,0.01717554]
[1719977222508,0.2648,61059.0,61058.0,0.03017554]
[1719977222869,0.2648,61059.0,61058.0,0.01717554]
[1719977223023,0.2648,61059.0,61058.0,0.09737554]
[1719977223593,0.081882,61063.0,61058.0,0.09737554]
[1719977224080,0.3244417,61064.0,61058.0,0.09637554]
[1719977224240,0.4063227,61064.0,61058.0,0.09937554]
[1719977224830,0.4063227,61064.0,61058.0,0.09637554]
[1719977225032,0.001,61063.0,61058.0,0.09637554]
[1719977225239,0.001,61063.0,61058.0,0.08337554]
[1719977225436,0.4063227,61064.0,61058.0,0.08337554]
[1719977225641,0.4063227,61064.0,61058.0,0.09137554]
[1719977225840,0.4073227,61064.0,61058.0,0.09137554]
[1719977226271,0.06,61059.0,61058.0,0.01617554]
[1719977226470,0.07283291,61062.0,61058.0,0.01617554]
[1719977226677,0.163767,61063.0,61058.0,0.02217554]
[1719977226678,0.081883,61063.0,61058.0,0.02217554]
[1719977227479,0.081883,61063.0,61058.0,0.02517554]
[1719977227700,0.45727461,61064.0,61058.0,0.02517554]
[1719977227701,0.39727461,61064.0,61058.0,0.02517554]
[1719977227900,0.39727461,61064.0,61059.0,0.0672]
[1719977227901,0.3244417,61064.0,61059.0,0.0672]
[1719977228458,0.26086554,61067.0,61063.0,0.0672]
[1719977228459,0.07282885,61066.0,61063.0,0.0672]
[1719977228572,0.07282885,61066.0,61065.0,0.0672]
[1719977228770,0.07282885,61066.0,61065.0,0.01617554]
[1719977229636,0.07282885,61066.0,61065.0,0.08337554]
[1719977229827,0.07282885,61066.0,61065.0,0.08737554]
[1719977230617,0.07897583,61066.0,61065.0,1.27484636]
[1719977230806,0.07897583,61066.0,61065.0,1.86012536]
[1719977231012,0.07282885,61066.0,61065.0,1.86012536]
[1719977231333,0.48093494,61087.0,61081.0,0.2484]
[1719977231492,0.48093494,61087.0,61085.0,0.0672]
[1719977231693,0.2429,61090.0,61083.0,0.0672]
[1719977231913,0.00597088,61085.0,61081.0,0.08337554]
[1719977232156,0.00597088,61085.0,61084.0,0.0672]
[1719977232753,0.00597088,61085.0,61081.0,0.17647434]
[1719977232915,0.00597088,61085.0,61084.0,0.0672]
[1719977233713,0.00597088,61085.0,61083.0,0.002]
[1719977234337,0.00597088,61085.0,61081.0,0.17647434]
[1719977234541,0.00597088,61085.0,61084.0,0.014]
[1719977234862,0.00597088,61085.0,61084.0,0.005]
[1719977235212,0.00597088,61085.0,61083.0,0.014]
[1719977235407,0.00597088,61085.0,61081.0,0.17647434]
[1719977235612,0.0132656,61086.0,61081.0,0.18147434]
[1719977235812,0.00504583,61085.0,61084.0,0.014]
[1719977236032,0.00504583,61085.0,61082.0,0.1602988]
[1719977236452,0.00504583,61085.0,61083.0,0.02]
[1719977236834,0.00500083,61085.0,61083.0,0.02]
[1719977237399,0.00500083,61085.0,61084.0,0.1602988]
[1719977237601,0.0132656,61086.0,61084.0,0.1602988]
[1719977238238,0.0132656,61086.0,61084.0,0.1742988]
[1719977238377,0.0132656,61086.0,61084.0,0.1602988]
[1719977238784,0.0132656,61086.0,61084.0,0.1742988]
[1719977239041,0.39882285,61094.0,61084.0,0.1832988]
[1719977240949,0.39882285,61094.0,61084.0,0.1742988]
[1719977241155,0.00837,61095.0,61086.0,0.06]
[1719977241377,0.00837,61095.0,61090.0,0.1679]
[1719977242352,0.00837,61095.0,61090.0,0.3281988]
[1719977242562,0.00837,61095.0,61090.0,0.3421988]
[1719977242962,0.00837,61095.0,61090.0,0.3281988]
[1719977243162,0.56,61094.0,61090.0,0.014]
[1719977243579,0.00837,61095.0,61087.0,0.081849]
[1719977243798,0.00837,61095.0,61087.0,0.2421478]
[1719977244331,0.00837,61095.0,61088.0,0.1602988]
[1719977244556,0.00837,61095.0,61090.0,0.006]
[1719977244680,0.00837,61095.0,61090.0,0.1662988]
[1719977244878,0.00837,61095.0,61090.0,0.1742988]
[1719977245631,0.00837,61095.0,61091.0,0.1602988]
[1719977245830,0.00837,61095.0,61092.0,0.3198]
[1719977246034,0.00837,61095.0,61092.0,0.4800988]
[1719977246648,0.00837,61095.0,61092.0,0.1602988]
[1719977246873,0.33327,61095.0,61092.0,0.1602988]
[1719977247288,0.00837,61095.0,61092.0,0.1602988]
[1719977247483,0.00837,61095.0,61093.0,0.1602988]
[1719977247695,0.00837,61095.0,61093.0,0.51111534]
[1719977247891,0.00837,61095.0,61094.0,0.3241]
[1719977248116,0.00837,61095.0,61094.0,0.4843988]
[1719977248819,0.00837,61095.0,61094.0,0.9921238]
[1719977249038,0.00837,61095.0,61094.0,0.8284418]
[1719977249238,0.00837,61095.0,61094.0,1.0103418]
[1719977249642,0.00837,61095.0,61094.0,0.9963418]
[1719977249977,0.00837,61095.0,61094.0,1.0103418]
[1719977250111,0.00837,61095.0,61094.0,0.5969188]
[1719977250323,0.00837,61095.0,61094.0,0.4983988]
[1719977251132,0.00837,61095.0,61094.0,0.1742988]
[1719977251503,0.00837,61095.0,61094.0,0.1882988]
[1719977252560,0.00837,61095.0,61094.0,0.2868188]
[1719977252759,0.00837,61095.0,61094.0,0.5365598]
[1719977252963,0.00837,61095.0,61094.0,0.2868188]
[1719977254168,0.00837,61095.0,61094.0,0.1882988]
[1719977254358,0.00837,61095.0,61094.0,0.2553988]
[1719977256835,0.00837,61095.0,61094.0,0.028]
[1719977257087,0.090209,61095.0,61094.0,0.028]
[1719977257410,0.01341808,61095.0,61094.0,0.028]
[1719977257630,0.253888,61095.0,61094.0,0.028]
[1719977257820,0.25893628,61095.0,61094.0,0.028]
[1719977258385,0.25893628,61095.0,61094.0,0.014]
[1719977258575,0.081841,61094.0,61093.0,0.0671]
[1719977258799,0.25057128,61094.0,61093.0,0.08327554]
[1719977259132,0.25057128,61094.0,61093.0,0.01617554]
[1719977259133,0.08688928,61094.0,61093.0,0.01617554]
[1719977259494,0.25057128,61094.0,61093.0,0.01617554]
[1719977260510,0.25057128,61094.0,61093.0,0.03017554]
[1719977260724,1.36664431,61094.0,61093.0,0.03017554]
[1719977260930,1.36664431,61094.0,61093.0,0.014]
[1719977260931,2.09062251,61094.0,61093.0,0.014]
[1719977261133,2.1064992,61094.0,61093.0,0.014]
[1719977261352,2.61659097,61094.0,61093.0,0.014]
[1719977261764,2.61659097,61094.0,61093.0,0.019]
[1719977262174,0.081864,61077.0,61073.0,0.0671]
[1719977262380,0.163723,61079.0,61071.0,0.0671]
[1719977262381,0.08691068,61076.0,61071.0,0.0671]
[1719977262598,0.00504568,61075.0,61072.0,0.1602988]
[1719977263018,0.00504568,61075.0,61074.0,0.3256]
[1719977263223,0.00504568,61075.0,61068.0,0.13434218]
[1719977263224,0.081869,61073.0,61068.0,0.10292218]
[1719977263425,0.2405,61077.0,61068.0,0.10292218]
[1719977263426,0.08691568,61072.0,61069.0,0.1602988]
[1719977263853,0.00504596,61071.0,61069.0,0.1602988]
[1719977264061,0.00504596,61070.0,61069.0,0.1602988]
[1719977264275,0.08187,61073.0,61069.0,0.1602988]
[1719977264276,0.00504596,61072.0,61069.0,0.1602988]
[1719977264485,0.00504596,61071.0,61069.0,0.1602988]
[1719977264690,0.00504596,61070.0,61069.0,0.1602988]
[1719977264892,0.08187,61073.0,61069.0,0.1602988]
[1719977264893,0.00504596,61072.0,61069.0,0.1602988]
[1719977265321,0.00504596,61072.0,61070.0,0.3013]
[1719977265496,0.081863,61078.0,61071.0,0.1602988]
[1719977265747,0.00504626,61077.0,61071.0,0.1602988]
[1719977265951,0.00504626,61076.0,61071.0,0.1602988]
[1719977266172,0.08691126,61076.0,61071.0,0.1602988]
[1719977266379,0.08691126,61076.0,61069.0,0.025]
[1719977266380,0.00504626,61075.0,61069.0,0.011]
[1719977266597,0.00504626,61075.0,61070.0,0.014]
[1719977266598,0.49094,61073.0,61070.0,0.014]
[1719977266811,0.081871,61071.0,61070.0,0.014]
[1719977267021,0.0869169,61071.0,61068.0,0.03582218]
[1719977267227,0.081871,61071.0,61068.0,0.03582218]
[1719977267430,0.00504597,61070.0,61068.0,0.03582218]
[1719977268481,0.08187,61072.0,61068.0,0.03582218]
[1719977268687,0.00504568,61071.0,61068.0,0.03582218]
[1719977268895,0.00504568,61071.0,61068.0,0.04982218]
[1719977269101,0.00504568,61071.0,61069.0,0.005]
[1719977269476,0.06,61084.0,61070.0,0.8029188]
[1719977269710,0.081865,61076.0,61070.0,0.8029188]
[1719977269836,0.00504604,61075.0,61070.0,0.8029188]
[1719977270040,0.081865,61076.0,61070.0,0.8029188]
[1719977270041,0.00504601,61074.0,61070.0,0.8029188]
[1719977270246,0.081865,61076.0,61070.0,0.8029188]
[1719977270448,0.00504619,61075.0,61070.0,0.8029188]
[1719977271558,0.00504619,61074.0,61070.0,0.8029188]
[1719977271777,0.081862,61078.0,61070.0,0.8049188]
[1719977271999,0.00504626,61077.0,61070.0,0.8029188]
[1719977272498,0.08691026,61077.0,61070.0,0.8169188]
[1719977272768,0.08691226,61076.0,61070.0,0.8029188]
[1719977273014,0.08691226,61076.0,61070.0,0.8129188]
[1719977273015,0.00504626,61075.0,61070.0,0.8129188]
[1719977273252,0.00504626,61075.0,61070.0,0.8029188]
[1719977273707,0.00504626,61075.0,61070.0,0.8049188]
[1719977274158,0.00504626,61074.0,61070.0,0.8029188]
[1719977274387,0.16372,61080.0,61070.0,0.8029188]
[1719977274388,0.16372,61080.0,61070.0,0.8079188]
[1719977274615,0.163725,61078.0,61070.0,0.8079188]
[1719977274842,0.00504627,61077.0,61070.0,0.8199188]
[1719977275092,0.00504627,61077.0,61070.0,0.8079188]
[1719977275320,0.08691027,61077.0,61070.0,0.8219188]
[1719977275568,0.00504627,61076.0,61070.0,0.8219188]
[1719977275797,0.00504627,61076.0,61070.0,0.8029188]
[1719977276010,0.00504627,61075.0,61070.0,0.8189188]
[1719977276213,0.081859,61080.0,61070.0,0.8089188]
[1719977276421,0.00504641,61079.0,61070.0,0.8089188]
[1719977276621,0.00504641,61079.0,61070.0,0.8149188]
[1719977276876,0.00504641,61079.0,61070.0,0.8189188]
[1719977277289,0.00504641,61079.0,61070.0,0.8149188]
[1719977277644,0.08690741,61079.0,61070.0,0.8149188]
[1719977277849,0.08690741,61079.0,61070.0,0.8029188]
[1719977277850,0.00504641,61078.0,61070.0,0.8029188]
[1719977278088,0.00504641,61078.0,61070.0,0.8169188]
[1719977278445,0.00504641,61078.0,61070.0,0.8029188]
[1719977278645,0.00504641,61078.0,61071.0,0.00327469]
[1719977278854,0.00504641,61077.0,61073.0,0.09852]
[1719977279067,0.081854,61084.0,61074.0,0.2588188]
[1719977279068,0.3925,61084.0,61074.0,0.2588188]
[1719977279290,0.06,61080.0,61070.0,0.5581]
[1719977279655,0.163726,61078.0,61071.0,0.1602988]
[1719977279869,0.00504574,61077.0,61071.0,0.1602988]
[1719977280076,0.00504574,61077.0,61073.0,0.005]
[1719977280298,0.00504574,61077.0,61073.0,0.1652988]
[1719977280495,0.00504574,61077.0,61071.0,0.013]
[1719977280496,0.081865,61076.0,61071.0,0.013]
[1719977280701,0.163726,61078.0,61071.0,0.013]
[1719977280702,0.48197874,61075.0,61071.0,0.013]
[1719977280914,0.081869,61073.0,61071.0,0.013]
[1719977281110,0.27144574,61072.0,61071.0,0.013]
[1719977281319,0.35331556,61072.0,61071.0,0.013]
[1719977281952,0.081872,61071.0,61068.0,0.03582218]
[1719977282157,0.00504556,61070.0,61068.0,0.03582218]
[1719977282363,0.081872,61071.0,61068.0,0.03582218]
[1719977282565,0.00504545,61070.0,61068.0,0.03582218]
[1719977283571,0.08691845,61070.0,61068.0,0.04982218]
[1719977283817,0.00504545,61069.0,61068.0,0.05482218]
[1719977284026,0.00504545,61069.0,61068.0,0.04082218]
[1719977284472,0.00504486,61069.0,61068.0,0.04082218]
[1719977285179,0.00504486,61069.0,61068.0,0.03582218]
[1719977285326,0.00504486,61069.0,61068.0,0.05582218]
[1719977285711,0.00504486,61069.0,61068.0,0.04182218]
[1719977285888,0.00504486,61069.0,61068.0,0.04982218]
[1719977286226,0.00504486,61073.0,61068.0,0.05682218]
[1719977286438,0.00504486,61072.0,61068.0,0.05682218]
[1719977286635,0.081868,61074.0,61068.0,0.05682218]
[1719977286636,0.00504486,61071.0,61068.0,0.05682218]
[1719977286838,0.00504486,61070.0,61069.0,0.0672]
[1719977287070,0.00504486,61070.0,61068.0,0.05682218]
[1719977287071,0.00504486,61070.0,61068.0,0.04982218]
[1719977287251,0.08187,61072.0,61068.0,0.03582218]
[1719977287441,0.00504456,61071.0,61068.0,0.03582218]
[1719977287943,0.00504456,61070.0,61068.0,0.03582218]
[1719977288120,0.00504456,61069.0,61068.0,0.03582218]
[1719977288319,0.00504456,61072.0,61068.0,0.03582218]
[1719977288527,0.00504456,61072.0,61068.0,0.03782218]
[1719977288844,0.00504456,61072.0,61068.0,0.04982218]
[1719977289073,0.00504456,61071.0,61068.0,0.04782218]
[1719977289223,0.00504456,61070.0,61068.0,0.04782218]
[1719977289411,0.00504456,61069.0,61068.0,0.05482218]
[1719977289612,0.00504456,61069.0,61068.0,0.04282218]
[1719977289813,0.00504456,61073.0,61068.0,0.03582218]
[1719977290042,0.00504456,61072.0,61068.0,0.04982218]
[1719977290214,0.00504456,61071.0,61068.0,0.05282218]
[1719977290438,0.00504303,61070.0,61068.0,0.03882218]
[1719977290606,0.00504301,61069.0,61068.0,0.03882218]
[1719977290811,0.00504301,61069.0,61068.0,0.03664664]
[1719977291027,0.00504342,61074.0,61069.0,0.06]
[1719977291241,0.00504348,61073.0,61070.0,0.2588188]
[1719977291450,0.081858,61081.0,61073.0,0.0672]
[1719977291659,0.00504368,61080.0,61074.0,0.1602988]
[1719977291855,0.00504368,61079.0,61074.0,0.1602988]
[1719977292052,0.00504368,61078.0,61074.0,0.1602988]
[1719977292253,0.00504368,61077.0,61074.0,0.1602988]
[1719977292496,0.00504368,61076.0,61074.0,0.1602988]
[1719977292673,0.00504368,61075.0,61074.0,0.1602988]
[1719977292875,0.00504368,61080.0,61074.0,0.1652988]
[1719977293206,0.00504368,61079.0,61074.0,0.1602988]
[1719977293446,0.081858,61081.0,61074.0,0.1602988]
[1719977293650,0.00504363,61080.0,61074.0,0.1742988]
[1719977293855,0.00504363,61079.0,61074.0,0.1602988]
[1719977294027,0.00504392,61078.0,61074.0,0.1602988]
[1719977294348,0.163707,61085.0,61074.0,0.1602988]
[1719977294349,0.00504392,61077.0,61074.0,0.1602988]
[1719977294620,0.00504392,61076.0,61074.0,0.1602988]
[1719977294778,0.00504392,61075.0,61074.0,0.1602988]
[1719977294982,0.00504392,61082.0,61074.0,0.1622988]
[1719977295206,0.09699136,61081.0,61074.0,0.1742988]
[1719977295392,0.01513336,61080.0,61074.0,0.1742988]
[1719977295639,0.01513336,61079.0,61074.0,0.1602988]
[1719977295875,0.01513336,61078.0,61074.0,0.1862988]
[1719977296071,0.01513336,61077.0,61074.0,0.1722988]
[1719977296279,0.01513336,61076.0,61074.0,0.1722988]
[1719977296512,0.00504472,61075.0,61074.0,0.1702988]
[1719977296695,0.01513417,61075.0,61074.0,0.1622988]
[1719977297063,0.01513417,61075.0,61074.0,0.1762988]
[1719977297959,0.01513417,61075.0,61074.0,0.1742988]
[1719977298348,0.01513417,61075.0,61074.0,0.2374988]
[1719977298751,0.01513417,61075.0,61074.0,0.2514988]
[1719977298953,0.01513417,61075.0,61074.0,0.2414988]
[1719977299158,0.00504472,61075.0,61074.0,0.2524988]
[1719977299352,0.081858,61082.0,61074.0,0.2524988]
[1719977299353,0.00504472,61081.0,61074.0,0.2524988]
[1719977299614,0.0050445,61080.0,61076.0,0.0672]
[1719977299814,0.0050445,61081.0,61076.0,0.08337554]
[1719977299993,0.0050445,61080.0,61076.0,0.08337554]
[1719977300195,0.0050445,61079.0,61076.0,0.08337554]
[1719977300541,0.0050445,61078.0,61076.0,0.08337554]
[1719977300695,0.0050445,61077.0,61076.0,0.08337554]
[1719977301109,0.0050445,61081.0,61076.0,0.08337554]
[1719977301324,0.0050445,61080.0,61076.0,0.08337554]
[1719977301570,0.0050445,61079.0,61076.0,0.08337554]
[1719977301802,0.6388065,61078.0,61076.0,0.03017554]
[1719977301968,0.0050445,61077.0,61076.0,0.03017554]
[1719977302190,0.0050445,61077.0,61076.0,0.02517554]
[1719977302399,0.0050445,61077.0,61076.0,0.03817554]
[1719977302548,0.0050445,61077.0,61076.0,0.02917554]
[1719977302758,0.005045,61077.0,61076.0,0.01617554]
[1719977302979,0.005045,61077.0,61076.0,0.03317554]
[1719977303177,0.08186,61080.0,61076.0,0.03317554]
[1719977303385,0.00504556,61079.0,61076.0,0.08637554]
[1719977303588,0.00504556,61078.0,61076.0,0.08637554]
[1719977303960,0.407615,61082.0,61076.0,0.08637554]
[1719977303961,0.00504556,61077.0,61076.0,0.08637554]
[1719977304163,0.00504556,61080.0,61076.0,0.08337554]
[1719977304367,0.081858,61081.0,61076.0,0.08337554]
[1719977304368,0.00504556,61079.0,61076.0,0.08337554]
[1719977304565,0.081858,61081.0,61076.0,0.08337554]
[1719977304566,0.00504556,61078.0,61076.0,0.09237554]
[1719977304771,0.00504556,61077.0,61076.0,0.10637554]
[1719977305022,0.00504556,61077.0,61076.0,0.09237554]
[1719977305168,0.00504556,61077.0,61076.0,0.08337554]
[1719977305371,0.00504556,61077.0,61076.0,0.10237554]
[1719977305584,0.08186,61080.0,61076.0,0.08837554]
[1719977305786,0.00504745,61079.0,61076.0,0.08837554]
[1719977306008,0.00504745,61079.0,61076.0,0.09737554]
[1719977306410,0.00504745,61079.0,61076.0,0.10637554]
[1719977307612,0.16876945,61079.0,61076.0,0.03917554]
[1719977307764,0.47153707,61077.0,61076.0,0.01617554]
[1719977307965,0.40371045,61077.0,61076.0,0.03017554]
[1719977308171,0.47658452,61077.0,61076.0,0.03017554]
[1719977308397,0.47658452,61077.0,61076.0,0.03617554]
[1719977308569,0.87219,61077.0,61076.0,0.03617554]
[1719977308776,0.87219,61077.0,61076.0,0.01617554]
[1719977308777,0.97444882,61077.0,61076.0,0.01617554]
[1719977309181,0.97444882,61077.0,61076.0,0.03017554]
[1719977309740,1.18330424,61077.0,61076.0,0.03017554]
[1719977310576,1.21864094,61077.0,61076.0,0.03017554]
[1719977311183,1.34015365,61077.0,61076.0,0.03017554]
[1719977311311,1.35024698,61077.0,61076.0,0.01817554]
[1719977311529,1.35024698,61077.0,61059.0,0.11214788]
[1719977311530,0.06,61049.0,61048.0,0.04916372]
[1719977311763,0.06,61049.0,61046.0,0.000924]
[1719977311764,1.09052,61047.0,61046.0,0.000924]
[1719977311960,0.081918,61036.0,61035.0,0.02005367]
[1719977312208,0.15513262,61036.0,61026.0,0.0672]
[1719977312415,0.14571264,61044.0,61026.0,0.0672]
[1719977312416,0.17897364,61035.0,61026.0,0.0672]
[1719977312618,0.163822,61042.0,61023.0,0.06]
[1719977312619,0.01513293,61034.0,61023.0,0.06]
[1719977312818,0.163822,61042.0,61031.0,0.327496]
[1719977312819,0.00504454,61033.0,61031.0,0.327496]
[1719977313204,0.163815,61045.0,61031.0,0.327496]
[1719977313205,0.081909,61043.0,61032.0,0.3073]
[1719977313416,0.081912,61041.0,61033.0,0.1602988]
[1719977313556,0.00504488,61040.0,61036.0,0.0672]
[1719977313877,0.00504488,61040.0,61033.0,0.1602988]
[1719977314710,0.00504488,61040.0,61031.0,0.327496]
[1719977314711,0.081923,61033.0,61031.0,0.327496]
[1719977314891,0.08103324,61033.0,61031.0,0.327496]
[1719977315298,0.002,61034.0,61031.0,0.009196]
[1719977315299,0.245772,61032.0,61031.0,0.009196]
[1719977315645,0.25081568,61032.0,61031.0,0.009196]
[1719977315817,0.25081568,61032.0,61031.0,0.023196]
[1719977316245,0.25081568,61032.0,61031.0,0.009196]
[1719977316773,0.24992585,61032.0,61031.0,0.010196]
[1719977317442,0.24488217,61032.0,61031.0,0.010196]
[1719977317680,0.24488217,61032.0,61031.0,0.021196]
[1719977317681,0.08103417,61032.0,61031.0,0.021196]
[1719977318050,0.08103417,61032.0,61031.0,0.010196]
[1719977318269,0.163843,61034.0,61031.0,0.021196]
[1719977318584,0.081924,61032.0,61031.0,0.021196]
[1719977319302,0.081923,61033.0,61031.0,0.009196]
[1719977319455,0.081923,61033.0,61031.0,0.017196]
[1719977319656,0.081923,61033.0,61031.0,0.009196]
[1719977320466,0.081921,61034.0,61031.0,0.009196]
[1719977321046,0.081921,61034.0,61031.0,0.020196]
[1719977321453,0.081921,61034.0,61031.0,0.021196]
[1719977321662,0.081922,61034.0,61031.0,0.021196]
[1719977321857,0.081922,61034.0,61031.0,0.009196]
[1719977322362,0.081923,61033.0,61031.0,0.017196]
[1719977324539,0.081923,61033.0,61031.0,0.009196]
[1719977324867,0.081923,61033.0,61031.0,0.018196]
[1719977325234,0.163843,61034.0,61031.0,0.018196]
[1719977325488,0.081924,61032.0,61031.0,0.018196]
[1719977325787,0.40962,61032.0,61031.0,0.018196]
[1719977325984,0.40962,61032.0,61031.0,0.009196]
[1719977326414,0.962368,61032.0,61031.0,0.017196]
[1719977326748,1.211368,61032.0,61031.0,0.017196]
[1719977327155,1.21641298,61032.0,61031.0,0.017196]
[1719977327378,1.376776,61032.0,61031.0,0.017196]
[1719977327605,1.37173106,61032.0,61031.0,0.009196]
[1719977327805,1.376776,61032.0,61031.0,0.009196]
[1719977328006,1.376776,61032.0,61031.0,0.020196]
[1719977328007,1.37173106,61032.0,61031.0,0.020196]
[1719977328213,1.37173106,61032.0,61031.0,0.010196]
[1719977328214,1.37677607,61032.0,61031.0,0.010196]
[1719977328408,1.53202986,61032.0,61031.0,0.010196]
[1719977328588,1.53202986,61032.0,61031.0,0.013196]
[1719977328964,1.53502986,61032.0,61031.0,0.013196]
[1719977329377,1.53502986,61032.0,61031.0,0.009196]
[1719977329706,1.53202986,61032.0,61031.0,0.012196]
[1719977330321,1.69587786,61032.0,61031.0,0.012196]
[1719977330521,1.96902328,61032.0,61031.0,0.012196]
[1719977331155,1.96902328,61032.0,61031.0,0.009196]
[1719977331331,1.96902328,61032.0,61031.0,0.014196]
[1719977331332,2.27202328,61032.0,61031.0,0.014196]
[1719977331530,1.97202328,61032.0,61031.0,0.014196]
[1719977331837,1.96902328,61032.0,61031.0,0.009196]
[1719977332037,1.97202328,61032.0,61031.0,0.013196]
[1719977332655,2.27202328,61032.0,61031.0,0.013196]
[1719977332871,2.27202297,61032.0,61031.0,0.013196]
[1719977333624,1.97202297,61032.0,61031.0,0.013196]
[1719977335360,0.51262,61032.0,61031.0,0.013196]
[1719977335572,0.348772,61032.0,61031.0,0.013196]
[1719977337512,0.35381799,61032.0,61031.0,0.013196]
[1719977338451,0.00804599,61032.0,61031.0,0.669521]
[1719977338681,0.003,61032.0,61031.0,0.9936708]
[1719977338884,0.003,61032.0,61031.0,0.9283398]
[1719977339243,0.003,61032.0,61031.0,1.0891908]
[1719977339444,0.00084,61037.0,61032.0,0.081923]
[1719977339686,0.48093494,61057.0,61042.0,0.08191]
[1719977340025,0.081895,61054.0,61043.0,0.3283988]
[1719977340410,0.163785,61056.0,61043.0,0.3283988]
[1719977340411,0.00504719,61053.0,61043.0,0.3283988]
[1719977340661,0.00504719,61052.0,61043.0,0.3283988]
[1719977340861,0.081892,61056.0,61043.0,0.3283988]
[1719977340994,0.00504751,61055.0,61043.0,0.3283988]
[1719977341394,0.081892,61056.0,61043.0,0.3283988]
[1719977341395,0.0050476,61054.0,61044.0,0.3014]
[1719977341593,0.0050476,61053.0,61046.0,0.2552]
[1719977341826,0.081891,61057.0,61046.0,0.2552]
[1719977342017,0.00504791,61056.0,61046.0,0.2552]
[1719977342717,0.00504791,61055.0,61046.0,0.2552]
[1719977343302,0.06,61053.0,61046.0,0.013]
[1719977343504,0.081901,61049.0,61046.0,0.013]
[1719977343700,0.081901,61049.0,61046.0,0.012]
[1719977343909,0.245696,61051.0,61046.0,0.012]
[1719977344244,0.00504736,61050.0,61046.0,0.012]
[1719977345003,0.00504736,61050.0,61046.0,0.02825713]
[1719977345431,0.06,61048.0,61046.0,0.03225713]
[1719977345638,0.06,61047.0,61046.0,0.03225713]
[1719977345844,0.06,61047.0,61046.0,0.01625713]
[1719977346059,0.06,61047.0,61046.0,0.02925713]
[1719977346060,0.06504712,61047.0,61046.0,0.02925713]
[1719977346406,0.31075911,61047.0,61046.0,0.02625713]
[1719977346533,0.56985911,61047.0,61046.0,0.02625713]
[1719977346734,0.79366711,61047.0,61046.0,0.03025713]
[1719977346958,0.62985911,61047.0,61046.0,0.03025713]
[1719977347157,0.63085911,61047.0,61046.0,0.04425713]
[1719977347357,0.625812,61047.0,61046.0,0.04425713]
[1719977347570,0.63085949,61047.0,61046.0,0.04425713]
[1719977347757,0.57085949,61047.0,61046.0,0.04425713]
[1719977348102,1.06273324,61047.0,61046.0,0.028]
[1719977348282,1.12273324,61047.0,61046.0,0.042]
[1719977348780,0.081911,61042.0,61039.0,0.01625713]
[1719977348996,0.00504749,61041.0,61039.0,0.01625713]
[1719977349427,0.06,61044.0,61039.0,0.01625713]
[1719977349608,0.00504661,61043.0,61039.0,0.01625713]
[1719977349816,0.081913,61040.0,61039.0,0.01625713]
[1719977350019,0.08695961,61040.0,61039.0,0.01625713]
[1719977350216,0.08695961,61040.0,61039.0,0.03025713]
[1719977350368,0.08695965,61040.0,61039.0,0.03025713]
[1719977350784,0.081913,61040.0,61039.0,0.03025713]
[1719977350972,0.14695975,61040.0,61039.0,0.03025713]
[1719977351162,0.57755142,61040.0,61039.0,0.03025713]
[1719977351372,0.57755142,61040.0,61039.0,0.01625713]
[1719977351581,0.57755142,61040.0,61039.0,0.02725713]
[1719977351785,0.57755142,61040.0,61039.0,0.01925713]
[1719977352190,0.57755142,61040.0,61039.0,0.03325713]
[1719977352407,0.43563842,61040.0,61039.0,0.03325713]
[1719977352670,0.409565,61040.0,61039.0,0.03325713]
[1719977352862,0.409565,61040.0,61039.0,0.03025713]
[1719977353265,0.409565,61040.0,61039.0,0.03525713]
[1719977355053,0.409565,61040.0,61039.0,0.019]
[1719977355606,0.40792824,61040.0,61039.0,0.019]
[1719977357920,0.020077,61050.0,61039.0,0.019]
[1719977358126,0.4101,61052.0,61039.0,0.019]
[1719977358127,0.16381,61046.0,61039.0,0.04517271]
[1719977358329,0.081908,61044.0,61039.0,0.04517271]
[1719977358734,0.081908,61044.0,61039.0,0.03025713]
[1719977359182,0.081908,61044.0,61039.0,0.01725713]
[1719977359359,0.081908,61044.0,61039.0,0.02425713]
[1719977359733,0.081908,61044.0,61039.0,0.01625713]
[1719977359949,0.081908,61044.0,61039.0,0.02525713]
[1719977361488,0.081908,61044.0,61039.0,0.01625713]
[1719977361722,0.1,61045.0,61039.0,0.02725713]
[1719977361723,0.081909,61043.0,61039.0,0.02725713]
[1719977361953,0.245739,61040.0,61039.0,0.02725713]
[1719977362192,0.245739,61040.0,61039.0,0.01625713]
[1719977362193,0.55584542,61040.0,61039.0,0.01625713]
[1719977362422,0.55584542,61040.0,61039.0,0.02825713]
[1719977362657,0.56090348,61040.0,61039.0,0.01725713]
[1719977362890,0.545739,61040.0,61039.0,0.01625713]
[1719977363117,0.56092569,61040.0,61039.0,0.03125713]
[1719977363367,0.56092569,61040.0,61039.0,0.01925713]
[1719977363368,0.55585941,61040.0,61039.0,0.01925713]
[1719977363615,0.56091961,61040.0,61039.0,0.01925713]
[1719977363866,0.72474561,61040.0,61039.0,0.01625713]
[1719977364809,0.87022237,61040.0,61039.0,0.02025713]
[1719977365044,0.87022237,61040.0,61039.0,0.004]
[1719977365045,1.18028153,61040.0,61039.0,0.004]
[1719977365282,1.13904837,61040.0,61039.0,0.004]
[1719977365763,0.70958,61038.0,61037.0,0.000924]
[1719977365997,0.82474353,61038.0,61037.0,0.000924]
[1719977366445,0.82474284,61038.0,61037.0,0.000924]
[1719977366672,1.25367484,61038.0,61037.0,0.000924]
[1719977366915,1.70306823,61038.0,61037.0,0.000924]
[1719977367140,2.16623129,61038.0,61037.0,0.000924]
[1719977368288,2.17023129,61038.0,61037.0,0.000924]
[1719977368491,2.17023129,61038.0,61037.0,0.004924]
[1719977368709,2.67023129,61038.0,61037.0,0.004924]
[1719977368926,2.60696168,61038.0,61037.0,0.005924]
[1719977369133,2.60696168,61038.0,61037.0,0.006924]
[1719977369134,3.12968492,61038.0,61037.0,0.006924]
[1719977369347,3.12868492,61038.0,61037.0,0.001924]